Workbook

Sheet NOTES
A2: The model has actual and test data to illustrate the workings of the model. | D2: ='Model update'!B5 -> 2020
A4: Issue | B4: Location | C4: Item | D4: Comment
A6: 1 | B6: 'Model update'!C25 | C6: CPI | D6: ="Updated June "&D2-1&" CPI for "&D2 -> Updated June 2019 CPI for 2020 | E6: NOTE: This worksheet is programmed to update for each year - use as checklist and note any placeholders or changes
E7: NOTE: Worksheet names in this file are programmed to update each year once each worksheet is accessed and a cell is selected
A8: =A6+1 -> 2 | B8: 'Model update'!B34 | C8: ="Xt for "&D2 -> Xt for 2020 | D8: ="Updated "&$D$2&" value" -> Updated 2020 value
A10: =A8+1 -> 3 | B10: 'Model update'!B44 | C10: ="Pass Through Amount for "&D2 -> Pass Through Amount for 2020 | D10: NIL for 2020
A12: =A10+1 -> 4 | B12: 'Model update'!H79:H83 | C12: Real Pre-tax WACC (rptw) | D12: ="Updated "&$D$2&" value" -> Updated 2020 value
A14: =A12+1 -> 5 | B14: ="Prop"&D2&"DistTar!E8:E96" -> Prop2020DistTar!E8:E96 | C14: =D2-1&" tariffs" -> 2019 tariffs | D14: ="Updated from "&D2-1&" model" -> Updated from 2019 model
A16: =A14+1 -> 6 | B16: ARS!B6:B12 | C16: =D2-1&" ARS tariffs" -> 2019 ARS tariffs | D16: ="Updated from "&D2-1&" model" -> Updated from 2019 model
A18: =A16+1 -> 7 | B18: The following is test data to illustrate the workings of the model. | D18: Input data required from DNSPs
B19: ="Prop"&D2&"DistTar!D8:D96" -> Prop2020DistTar!D8:D96 | C19: ="Proposed "&D2&" Tariffs" -> Proposed 2020 Tariffs
B20: ="Prop"&D2&"DistTar!F8:F96" -> Prop2020DistTar!F8:F96 | C20: ="Actual "&D2-2&" Volumes" -> Actual 2018 Volumes
B22: ARS!C6:C12 | C22: ="Proposed "&D2&" Ancillary Reference Services Charges" -> Proposed 2020 Ancillary Reference Services Charges

Sheet Model update
A3: Tariff Approval Template for | B3: Aust. Gas Networks (Vic & Albury)
A5: Calendar year commencing | B5: 2020
A7: t | B7: =B5 -> 2020
A8: t-1 | B8: =B7-1 -> 2019
A9: t-2 | B9: 2018
A10: t-3 | B10: 2017
A13: Please fill in yellow highlighted cells where appropriate
A15: CPI
A17: CPI Index June 2016 | B17: 108.6
A18: CPI Index June 2017 | B18: 110.7
A19: CPI Index June 2018 | B19: 113
A20: CPI Index June 2019 | B20: 114.8
A21: CPI Index June 2020
A22: CPI Index June 2021
A25: ="CPI Index June " &$B$10 -> CPI Index June 2017 | B25: =VLOOKUP(A25,A$17:B$22,2,FALSE) -> 110.7
A26: ="CPI Index June " &$B$9 -> CPI Index June 2018 | B26: =VLOOKUP(A26,A$17:B$22,2,FALSE) -> 113
A27: ="CPI Index June " &$B$8 -> CPI Index June 2019 | B27: =VLOOKUP(A27,A$17:B$22,2,FALSE) -> 114.8
A29: ="CPI " &$B$8 -> CPI 2019 | B29: =B26/B25-1 -> 0.02077687444
A30: ="CPI " &$B$5 -> CPI 2020 | B30: =B27/B26-1 -> 0.01592920354
A33: ="Xt for "&B$5 -> Xt for 2020
A34: 2019 | B34: -0.0129320032
A35: 2020 | B35: -0.005964380543
A36: 2021 | B36: -0.0135
A37: 2022 | B37: -0.0135
A40: ="Xt for "&B$5 -> Xt for 2020 | B40: =VLOOKUP(B5,A34:B38,2,FALSE) -> -0.005964380543
A43: Pass Through Amounts : PT (t)
A44: 2019 | B44: 0
A45: 2020 | B45: 0
A46: 2021 | B46: 0
A47: 2022 | B47: 0
A50: ="Pass Through Amount for "&B$5 -> Pass Through Amount for 2020 | B50: =VLOOKUP(B5,A44:B48,2,FALSE) -> 0
A51: The Pass Through Amount is to include an amount that reflects the time value of money between incurring the costs and recovering the costs
A52: and excludes any amounts already passed through in reference tariffs.
A55: Pre-tax WACC for distribution tariffs
A58: Pretax WACCD | B58: 0.03739434188

Sheet Prop2020DistTar
B1: ="Tariff Approval - "&'Model update'!B3 -> Tariff Approval - Aust. Gas Networks (Vic & Albury) | D1: ="Prop"&'Model update'!B5&"DistTar" -> Prop2020DistTar
B3: ="PROPOSED "&'Model update'!$B$5&" DISTRIBUTION TARIFFS" -> PROPOSED 2020 DISTRIBUTION TARIFFS
B5: Proposed tariff name | C5: Existing tariff name | D5: ="Prop "&'Model update'!$B$5&" Tariff" -> Prop 2020 Tariff | E5: ="Exist "&'Model update'!$B$8&" Tariff" -> Exist 2019 Tariff | F5: ="Actual "&'Model update'!$B$9&" Volumes" -> Actual 2018 Volumes | G5: Prop Tar Revenue | H5: Exist Tar Revenue
B6: Tariff V - AGN Central - Residential | C6: Tariff V - AGN Central - Residential
B8: Fixed Charge | C8: Fixed Charge | D8: 0.1931 | E8: 0.1901 | F8: 200042386 | G8: =D8*$F8 -> 38628184.74 | H8: =E8*$F8 -> 38028057.58
B9: GJ 0 - 0.0274 | C9: GJ 0 - 0.0274 | D9: 11.8925 | E9: 11.4676 | F9: 4774337.935 | G9: =D9*$F9 -> 56778813.89 | H9: 54750197.7
B10: GJ 0.0274 - 0.0493 | C10: GJ 0.0274 - 0.0493 | D10: 6.8378 | E10: 6.7306 | F10: 2971130.413 | G10: 20315995.54 | H10: 19997490.36
B11: GJ > 0.0493 | C11: GJ > 0.0493 | D11: 3.7538 | E11: 3.6949 | F11: 17831150.37 | G11: 66934572.24 | H11: 65884317.49
B12: Tariff V - AGN Central - Non Residential | C12: Tariff V - AGN Central - Non Residential
B14: Fixed Charge | C14: Fixed Charge | D14: 0.1931 | E14: 0.1901 | F14: 7284773 | G14: =D14*$F14 -> 1406689.666 | H14: =E14*$F14 -> 1384835.347
B15: GJ 0 - 0.05 | C15: GJ 0 - 0.05 | D15: 8.3949 | E15: 8.2633 | F15: 265830.6177 | G15: =D15*$F15 -> 2231621.452 | H15: 2196638.143
B16: GJ 0.05 - 0.55 | C16: GJ 0.05 - 0.55 | D16: 3.9622 | E16: 3.8769 | F16: 1423735.413 | G16: 5641124.455 | H16: 5519679.824
B17: GJ 0.55 - 1.37 | C17: GJ 0.55 - 1.37 | D17: 2.9553 | E17: 2.8973 | F17: 1139568.007 | G17: 3367765.33 | H17: 3301670.386
B18: GJ > 1.37 | C18: GJ > 1.37 | D18: 1.1936 | E18: 1.1749 | F18: 4006118.313 | G18: 4781702.818 | H18: 4706788.406
B19: Tariff V - AGN North - Residential | C19: Tariff V - AGN North - Residential
B21: Fixed Charge | C21: Fixed Charge | D21: 0.1931 | E21: 0.1901 | F21: 28266023 | G21: =D21*$F21 -> 5458169.041 | H21: =E21*$F21 -> 5373370.972
B22: GJ 0 - 0.0274 | C22: GJ 0 - 0.0274 | D22: 10.4636 | E22: 10.0897 | F22: 646209.0052 | G22: =D22*$F22 -> 6761672.547 | H22: 6520055
B23: GJ 0.0274 - 0.0493 | C23: GJ 0.0274 - 0.0493 | D23: 6.1251 | E23: 6.0291 | F23: 383055.0617 | G23: 2346250.559 | H23: 2309477.273
B24: GJ > 0.0493 | C24: GJ > 0.0493 | D24: 3.3629 | E24: 3.3102 | F24: 2456109.333 | G24: 8259650.075 | H24: 8130213.113
B25: Tariff V - AGN North - Non Residential | C25: Tariff V - AGN North - Non Residential
B27: Fixed Charge | C27: Fixed Charge | D27: 0.1931 | E27: 0.1901 | F27: 1189097 | G27: =D27*$F27 -> 229614.6307 | H27: =E27*$F27 -> 226047.3397
B28: GJ 0 - 0.05 | C28: GJ 0 - 0.05 | D28: 7.5303 | E28: 7.4122 | F28: 37173.31227 | G28: =D28*$F28 -> 279926.1934 | H28: 275536.0252
B29: GJ 0.05 - 0.55 | C29: GJ 0.05 - 0.55 | D29: 3.5809 | E29: 3.5038 | F29: 180073.9031 | G29: 644826.6397 | H29: 630942.9418
B30: GJ 0.55 - 1.37 | C30: GJ 0.55 - 1.37 | D30: 2.6707 | E30: 2.6183 | F30: 123812.9693 | G30: 330667.297 | H30: 324179.4975
B31: GJ > 1.37 | C31: GJ > 1.37 | D31: 1.0791 | E31: 1.0617 | F31: 482010.1613 | G31: 520137.1651 | H31: 511750.1883
B32: Tariff V - Murray Valley - Residential | C32: Tariff V - Murray Valley - Residential
B34: Fixed Charge | C34: Fixed Charge | D34: 0.2458 | E34: 0.2419 | F34: 2924336 | G34: =D34*$F34 -> 718801.7888 | H34: =E34*$F34 -> 707396.8784
B35: GJ 0 - 0.0274 | C35: GJ 0 - 0.0274 | D35: 9.1098 | E35: 8.7843 | F35: 55926.25584 | G35: =D35*$F35 -> 509477.0055 | H35: 491273.0092
B36: GJ 0.0274 - 0.0493 | C36: GJ 0.0274 - 0.0493 | D36: 5.5111 | E36: 5.4247 | F36: 29339.5961 | G36: 161693.4481 | H36: 159158.507
B37: GJ > 0.0493 | C37: GJ > 0.0493 | D37: 3.4475 | E37: 3.3934 | F37: 186758.2217 | G37: 643848.9692 | H37: 633745.3494
B38: Tariff V - Murray Valley - Non Residential | C38: Tariff V - Murray Valley - Non Residential
B40: Fixed Charge | C40: Fixed Charge | D40: 0.2458 | E40: 0.2419 | F40: 128179 | G40: =D40*$F40 -> 31506.3982 | H40: =E40*$F40 -> 31006.5001
B41: GJ 0 - 0.05 | C41: GJ 0 - 0.05 | D41: 6.733 | E41: 6.6274 | F41: 4312.191816 | G41: =D41*$F41 -> 29033.9875 | H41: 28578.62004
B42: GJ 0.05 - 0.55 | C42: GJ 0.05 - 0.55 | D42: 3.9767 | E42: 3.8911 | F42: 20264.9674 | G42: 80587.69587 | H42: 78853.01466
B43: GJ 0.55 - 1.37 | C43: GJ 0.55 - 1.37 | D43: 2.9678 | E43: 2.9096 | F43: 13200.20602 | G43: 39175.57142 | H43: 38407.31943
B44: GJ > 1.37 | C44: GJ > 1.37 | D44: 1.3435 | E44: 1.3224 | F44: 28916.66075 | G44: 38849.53372 | H44: 38239.39218
B45: Tariff V - Bairnsdale - Residential | C45: Tariff V - Bairnsdale - Residential
B47: Fixed Charge | C47: Fixed Charge | D47: 0.3178 | E47: 0.3128 | F47: 1583316 | G47: =D47*$F47 -> 503177.8248 | H47: =E47*$F47 -> 495261.2448
B48: GJ 0 - 0.0274 | C48: GJ 0 - 0.0274 | D48: 19.4166 | E48: 18.7228 | F48: 30897.5708 | G48: =D48*$F48 -> 599925.7732 | H48: =E48*$F48 -> 578489.0386
B49: GJ 0.0274 - 0.0493 | C49: GJ 0.0274 - 0.0493 | D49: 11.2934 | E49: 11.1163 | F49: 15280.18421 | G49: 172565.2324 | H49: 169859.1118
B50: GJ > 0.0493 | C50: GJ > 0.0493 | D50: 6.1999 | E50: 6.1027 | F50: 66716.11573 | G50: 413633.2459 | H50: 407148.4394
B51: Tariff V - Bairnsdale - Non Residential | C51: Tariff V - Bairnsdale - Non Residential
B53: Fixed Charge | C53: Fixed Charge | D53: 0.3178 | E53: 0.3128 | F53: 42198 | G53: =D53*$F53 -> 13410.5244 | H53: =E53*$F53 -> 13199.5344
B54: GJ 0 - 0.05 | C54: GJ 0 - 0.05 | D54: 13.8045 | E54: 13.5881 | F54: 1724.418849 | G54: =D54*$F54 -> 23804.74 | H54: =E54*$F54 -> 23431.57577
B55: GJ 0.05 - 0.55 | C55: GJ 0.05 - 0.55 | D55: 6.73 | E55: 6.5851 | F55: 12856.56179 | G55: 86524.66088 | H55: 84661.74507
B56: GJ 0.55 - 1.37 | C56: GJ 0.55 - 1.37 | D56: 5.0178 | E56: 4.9194 | F56: 10060.35819 | G56: 50480.8653 | H56: 49490.92606
B57: GJ > 1.37 | C57: GJ > 1.37 | D57: 2.0267 | E57: 1.9949 | F57: 37494.20467 | G57: 75989.50461 | H57: 74797.1889
B59: Tariff D - AGN Central | C59: Tariff D - AGN Central
B60: 0 - 10 | C60: 0 - 10 | D60: 1461.0058 | E60: 1429.5715 | F60: 1452.292 | G60: =D60*$F60 -> 2121807.035 | H60: 2076155.253
B61: 10 - 50 | C61: 10 - 50 | D61: 893.1654 | E61: 873.9485 | F61: 1249.9424 | G61: 1116405.304 | H61: 1092385.286
B62: > 50 | C62: > 50 | D62: 163.1104 | E62: 159.601 | F62: 1420.239 | G62: 231655.7514 | H62: 226671.5646
B64: Tariff D - AGN North | C64: Tariff D - AGN North
B65: 0 - 10 | C65: 0 - 10 | D65: 1461.0058 | E65: 1429.5715 | F65: 434.1424 | G65: =D65*$F65 -> 634284.5644 | H65: 620637.602
B66: 10 - 50 | C66: 10 - 50 | D66: 893.1654 | E66: 873.9485 | F66: 627.2101 | G66: 560202.3599 | H66: 548149.3261
B67: > 50 | C67: > 50 | D67: 163.1104 | E67: 159.601 | F67: 440.2185 | G67: 71804.21562 | H67: 70259.31282
B69: Tariff D - Murray Valley | C69: Tariff D - Murray Valley
B70: 0 - 10 | C70: 0 - 10 | D70: 1702.9777 | E70: 1666.3373 | F70: 68.2359 | G70: =D70*$F70 -> 116204.216 | H70: 113704.0254
B71: 10 - 50 | C71: 10 - 50 | D71: 1050.8447 | E71: 1028.2353 | F71: 163.2035 | G71: 171501.533 | H71: 167811.5998
B72: > 50 | C72: > 50 | D72: 178.9774 | E72: 175.1266 | F72: 102.5181 | G72: 18348.42299 | H72: 17953.64629
B74: Tariff D - Bairnsdale | C74: Tariff D - Bairnsdale
B75: 0 - 10 | C75: 0 - 10 | D75: 2416.6996 | E75: 2364.7031 | F75: 15.3913 | G75: =D75*$F75 -> 37196.14855 | H75: 36395.85482
B76: 10 - 50 | C76: 10 - 50 | D76: 1497.1554 | E76: 1464.9434 | F76: 3.6834 | G76: 5514.6222 | H76: 5395.97252
B77: > 50 | C77: > 50 | D77: 273.0471 | E77: 267.1724 | F77: 0 | G77: 0 | H77: 0
B79: Tariff V - Albury - Residential | C79: Tariff V - Albury - Residential
B81: Fixed Charge | C81: Fixed Charge | D81: 0.2512 | E81: 0.2473 | F81: 8074668 | G81: =D81*$F81 -> 2028356.602 | H81: 1996865.396
B82: GJ 0 - 0.0274 | C82: GJ 0 - 0.0274 | D82: 8.612 | E82: 8.3043 | F82: 182816.3109 | G82: 1574414.069 | H82: 1518161.49
B83: GJ 0.0274 - 0.0493 | C83: GJ 0.0274 - 0.0493 | D83: 5.1476 | E83: 5.0669 | F83: 107334.7639 | G83: 552516.4304 | H83: 543854.515
B84: GJ > 0.0493 | C84: GJ > 0.0493 | D84: 2.8267 | E84: 2.7824 | F84: 679508.2424 | G84: 1920765.949 | H84: 1890663.734
B85: Tariff V - Albury - Non Residential | C85: Tariff V - Albury - Non Residential
B87: Fixed Charge | C87: Fixed Charge | D87: 0.2512 | E87: 0.2473 | F87: 337460 | G87: =D87*$F87 -> 84769.952 | H87: 83453.858
B88: GJ 0 - 0.05 | C88: GJ 0 - 0.05 | D88: 6.3207 | E88: 6.2216 | F88: 11053.69385 | G88: 69867.08274 | H88: 68771.66168
B89: GJ 0.05 - 0.55 | C89: GJ 0.05 - 0.55 | D89: 3.121 | E89: 3.0538 | F89: 56720.66901 | G89: 177025.208 | H89: 173213.579
B90: GJ 0.55 - 1.37 | C90: GJ 0.55 - 1.37 | D90: 2.2163 | E90: 2.1728 | F90: 41383.91358 | G90: 91719.16766 | H90: 89918.96742
B91: GJ > 1.37 | C91: GJ > 1.37 | D91: 0.8949 | E91: 0.8808 | F91: 178425.8058 | G91: 159673.2536 | H91: 157157.4497
B93: Tariff D - Albury | C93: Tariff D - Albury
B94: 0 - 10 | C94: 0 - 10 | D94: 1256.4656 | E94: 1229.4321 | F94: 50.052 | G94: =D94*$F94 -> 62888.61621 | H94: 61535.53547
B95: 10 - 50 | C95: 10 - 50 | D95: 780.3805 | E95: 763.5902 | F95: 102.7889 | G95: =D95*$F95 -> 80214.45318 | H95: 78488.59671
B96: > 50 | C96: > 50 | D96: 188.635 | E96: 184.5128 | F96: 197.366 | G96: 37230.13541 | H96: 36416.55328
B101: Total Revenue | C101: Total Revenue | G101: =SUM(G8:G97) -> 241034236.1 | H101: =SUM(H8:H97) -> 235848265.8

Sheet 2020TarContForm
B1: ="Tariff Approval - "&'Model update'!B3 -> Tariff Approval - Aust. Gas Networks (Vic & Albury) | F1: ='Model update'!B5&"TarContForm" -> 2020TarContForm
B3: ='Model update'!$B$5&" TARIFF CONTROL FORMULA" -> 2020 TARIFF CONTROL FORMULA
B6: CPI
B8: ="CPI Sept"&'Model update'!$B$9 -> CPI Sept2018 | C8: ='Model update'!B26 -> 113
B9: ="CPI Sept"&'Model update'!$B$8 -> CPI Sept2019 | C9: ='Model update'!B27 -> 114.8
B11: ="CPI "&'Model update'!$B$5 -> CPI 2020 | C11: =(C9/C8-1) -> 0.01592920354
B15: X factor
B17: ="X "&'Model update'!$B$5 -> X 2020 | C17: ='Model update'!B40 -> -0.005964380543
B20: Pass Through Factor (PT)
B22: pass through
B23: ="AP (t) "&'Model update'!$B$7 -> AP (t) 2020 | C23: ='Model update'!B50 -> 0
B25: Revenue
B26: ∑∑p(t-1)q(t-2) | C26: =C41 -> 235848265.8
B28: PT' (t-1) | C28: 0
B29: ="PT' "&'Model update'!$B$5 -> PT' 2020 | C29: =IF(C26="",0,(C23)/((1+C11)*(1-C17)*C26)) -> 0
B31: ="PTt "&'Model update'!$B$5 -> PTt 2020 | C31: =((1+C29)/(1+C28))-1 -> 0
B36: ='Model update'!$B$5&" Distribution price control" -> 2020 Distribution price control
B38: Average price movement allowed | C38: =(1+C11)*(1-C17)*(1+C31) -> 1.021988592
B40: Proposed distribution tariff revenue | C40: =IF(Prop2020DistTar!G101=0,"",Prop2020DistTar!G101) -> 241034236.1
B41: Existing distribution tariff revenue | C41: =IF(Prop2020DistTar!H101=0,"",Prop2020DistTar!H101) -> 235848265.8
B42: Average price movement | C42: =IF(C40="","",C40/C41) -> 1.021988588
B44: =IF(C40="","",IF(C38>=C42,"DISTRIBUTION PRICE CONTROL FORMULA COMPLIANT","DISTRIBUTION PRICE CONTROL FORMULA BREACHED")) -> DISTRIBUTION PRICE CONTROL FORMULA COMPLIANT

Sheet 2020RebalContForm
B1: ="Tariff Approval - "&'Model update'!B3 -> Tariff Approval - Aust. Gas Networks (Vic & Albury) | C1: ='Model update'!B7&"RebalContForm" -> 2020RebalContForm
B3: ='Model update'!$B$5&" REBALANCING CONTROL FORMULA" -> 2020 REBALANCING CONTROL FORMULA
B6: Rebalancing control
B8: ="CPI "&'Model update'!$B$5 -> CPI 2020 | C8: ='2020TarContForm'!C11 -> 0.01592920354
B9: ="Y "&'Model update'!$B$5 -> Y 2020 | C9: 0.02
B10: ="PTt "&'Model update'!$B$5 -> PTt 2020 | C10: ='2020TarContForm'!C29 -> 0
B11: ="Xt "&'Model update'!$B$5 -> Xt 2020 | C11: ='2020TarContForm'!C17 -> -0.005964380543
B13: Rebalancing control | C13: =(1+C8)*(1+C9)*(1+C10)*(1-C11) -> 1.042428364
B17: Rebalancing control summary
C18: Existing | D18: Proposed | E18: Movement | F18: Assessment
B19: =B38 -> Tariff V - AGN Central - Residential | C19: =C59 -> 178660063.1 | D19: =C60 -> 182657566.4 | E19: =IF(C19=0,0,D19/C19) -> 1.022374913 | F19: =IF(E19=0,"",IF($C$13<=E19,"Breached","Compliant")) -> Compliant
B20: =B68 -> Tariff V - AGN North - Residential | C20: =C89 -> 22333116.36 | D20: =C90 -> 22825742.22 | E20: =IF(C20=0,0,D20/C20) -> 1.022058089 | F20: =IF(E20=0,"",IF($C$13<=E20,"Breached","Compliant")) -> Compliant
B21: =B98 -> Tariff V - Murray Valley - Residential | C21: =C119 -> 1991573.744 | D21: =C120 -> 2033821.212 | E21: 1.021213107 | F21: Compliant
B22: =B128 -> Tariff V - Bairnsdale - Residential | C22: =C149 -> 1650757.835 | D22: =C150 -> 1689302.076 | E22: 1.023349422 | F22: Compliant
B23: =B158 -> Tariff V - AGN Central - Non Residential | C23: =C179 -> 17109612.11 | D23: =C180 -> 17428903.72 | E23: 1.018661534 | F23: Compliant
B24: =B188 -> Tariff V - AGN North - Non Residential | C24: =C209 -> 1968455.992 | D24: =C210 -> 2005171.926 | E24: 1.018652149 | F24: =IF(E24=0,"",IF($C$13<=E24,"Breached","Compliant")) -> Compliant
B25: =B218 -> Tariff V - Murray Valley - Non Residential | C25: =C239 -> 215084.8464 | D25: =C240 -> 219153.1867 | E25: 1.018915048 | F25: Compliant
B26: =B248 -> Tariff V - Bairnsdale - Non Residential | C26: =C269 -> 245580.9702 | D26: =C270 -> 250210.2952 | E26: =IF(C26=0,0,D26/C26) -> 1.018850504 | F26: =IF(E26=0,"",IF($C$13<=E26,"Breached","Compliant")) -> Compliant
B27: =B278 -> Tariff D - AGN Central | C27: =C293 -> 3395212.103 | D27: =C294 -> 3469868.09 | E27: =IF(C27=0,0,D27/C27) -> 1.021988608 | F27: =IF(E27=0,"",IF($C$13<=E27,"Breached","Compliant")) -> Compliant
B28: =B302 -> Tariff D - AGN North | C28: =C317 -> 1239046.241 | D28: =C318 -> 1266291.14 | E28: 1.021988606 | F28: Compliant
B29: =B326 -> Tariff D - Murray Valley | C29: =C341 -> 299469.2714 | D29: =C342 -> 306054.172 | E29: 1.021988568 | F29: Compliant
B30: =B350 -> Tariff D - Bairnsdale | C30: =C365 -> 41791.82734 | D30: =C366 -> 42710.77075 | E30: 1.021988591 | F30: Compliant
B31: =B374 -> Tariff V - Albury - Residential | C31: =C395 -> 5949545.136 | D31: =C396 -> 6076053.05 | E31: 1.02126346 | F31: Compliant
B32: =B404 -> Tariff V - Albury - Non Residential | C32: =C425 -> 572515.5159 | D32: =C426 -> 583054.664 | E32: 1.018408493 | F32: Compliant
B33: =B434 -> Tariff D - Albury | C33: =C449 -> 176440.6855 | D33: =C450 -> 180333.2048 | E33: 1.022061348 | F33: Compliant
C34: =SUM(C19:C33) -> 235848265.8 | D34: =SUM(D19:D33) -> 241034236.1 | E34: 1.021988588
B38: =Prop2020DistTar!B6 -> Tariff V - AGN Central - Residential | C38: 1 | D38: 2 | E38: 3 | F38: 4 | G38: 5
C39: 1 | D39: 2 | E39: 3 | F39: 4 | G39: 5
B40: Distribution tariff | C40: Fixed | D40: Blk1 | E40: Blk2 | F40: Blk3
B42: ="Existing : "&Prop2020DistTar!C6 -> Existing : Tariff V - AGN Central - Residential | C42: =INDEX(Prop2020DistTar!$E$8:$E$11,C$39) -> 0.1901 | D42: =INDEX(Prop2020DistTar!$E$8:$E$11,D$39) -> 11.4676 | E42: =INDEX(Prop2020DistTar!$E$8:$E$11,E$39) -> 6.7306 | F42: =INDEX(Prop2020DistTar!$E$8:$E$11,F$39) -> 3.6949
B44: ="Proposed : "&B38 -> Proposed : Tariff V - AGN Central - Residential | C44: =INDEX(Prop2020DistTar!$D$8:$D$11,C$38) -> 0.1931 | D44: =INDEX(Prop2020DistTar!$D$8:$D$11,D$38) -> 11.8925 | E44: =INDEX(Prop2020DistTar!$D$8:$D$11,E$38) -> 6.8378 | F44: =INDEX(Prop2020DistTar!$D$8:$D$11,F$38) -> 3.7538
B46: Distribution volumes (actual) | C46: =C$40 -> Fixed | D46: =D$40 -> Blk1 | E46: Blk2 | F46: Blk3
B48: =B42 -> Existing : Tariff V - AGN Central - Residential | C48: =INDEX(Prop2020DistTar!$F$8:$F$11,C$13) -> 200042386 | D48: =INDEX(Prop2020DistTar!$F$8:$F$11,D$38) -> 4774337.935 | E48: =INDEX(Prop2020DistTar!$F$8:$F$11,E$38) -> 2971130.413 | F48: =INDEX(Prop2020DistTar!$F$8:$F$11,F$38) -> 17831150.37
B50: =B44 -> Proposed : Tariff V - AGN Central - Residential | C50: =INDEX(Prop2020DistTar!$F$8:$F$11,C$38) -> 200042386 | D50: =INDEX(Prop2020DistTar!$F$8:$F$11,D$38) -> 4774337.935 | E50: =INDEX(Prop2020DistTar!$F$8:$F$11,E$38) -> 2971130.413 | F50: =INDEX(Prop2020DistTar!$F$8:$F$11,F$38) -> 17831150.37
B52: Distribution revenue | C52: =C$40 -> Fixed | D52: Blk1 | E52: Blk2 | F52: Blk3
B54: =B48 -> Existing : Tariff V - AGN Central - Residential | C54: =INDEX(Prop2020DistTar!$H$8:$H$11,C$39) -> 38028057.58 | D54: =INDEX(Prop2020DistTar!$H$8:$H$11,D$39) -> 54750197.7 | E54: =INDEX(Prop2020DistTar!$H$8:$H$11,E$39) -> 19997490.36 | F54: =INDEX(Prop2020DistTar!$H$8:$H$11,F$39) -> 65884317.49
B56: =B50 -> Proposed : Tariff V - AGN Central - Residential | C56: =INDEX(Prop2020DistTar!$G$8:$G$11,C$38) -> 38628184.74 | D56: =INDEX(Prop2020DistTar!$G$8:$G$11,D$38) -> 56778813.89 | E56: =INDEX(Prop2020DistTar!$G$8:$G$11,E$38) -> 20315995.54 | F56: =INDEX(Prop2020DistTar!$G$8:$G$11,F$38) -> 66934572.24
B58: Revenue | C58: Total
B59: =B54 -> Existing : Tariff V - AGN Central - Residential | C59: =SUM(C54:F54) -> 178660063.1
B60: =B56 -> Proposed : Tariff V - AGN Central - Residential | C60: =SUM(C56:F56) -> 182657566.4
B62: Average price movement | C62: =IF(C60=0,"",C60/C59) -> 1.022374913
B64: =IF(C62="","",IF(C62<=$C$13,"REBALANCING CONTROL COMPLIANT","REBALANCING CONTROL BREACHED")) -> REBALANCING CONTROL COMPLIANT
B68: =Prop2020DistTar!B19 -> Tariff V - AGN North - Residential | C68: 1 | D68: 2 | E68: 3 | F68: 4
C69: 1 | D69: 2 | E69: 3 | F69: 4
B70: Distribution tariff | C70: Fixed | D70: Blk1 | E70: Blk2 | F70: Blk3
B72: ="Existing : "&Prop2020DistTar!C19 -> Existing : Tariff V - AGN North - Residential | C72: =INDEX(Prop2020DistTar!$E$21:$E$24,C$39) -> 0.1901 | D72: =INDEX(Prop2020DistTar!$E$21:$E$24,D$39) -> 10.0897 | E72: =INDEX(Prop2020DistTar!$E$21:$E$24,E$39) -> 6.0291 | F72: =INDEX(Prop2020DistTar!$E$21:$E$24,F$39) -> 3.3102
B74: ="Proposed : "&B68 -> Proposed : Tariff V - AGN North - Residential | C74: =INDEX(Prop2020DistTar!$D$21:$D$24,C$38) -> 0.1931 | D74: =INDEX(Prop2020DistTar!$D$21:$D$24,D$38) -> 10.4636 | E74: =INDEX(Prop2020DistTar!$D$21:$D$24,E$38) -> 6.1251 | F74: =INDEX(Prop2020DistTar!$D$21:$D$24,F$38) -> 3.3629
B76: Distribution volumes (actual) | C76: Fixed | D76: PkBlk1 | E76: PkBlk2 | F76: PkBlk3
B78: =B72 -> Existing : Tariff V - AGN North - Residential | C78: =INDEX(Prop2020DistTar!$F$21:$F$24,C$38) -> 28266023 | D78: =INDEX(Prop2020DistTar!$F$21:$F$24,D$38) -> 646209.0052 | E78: =INDEX(Prop2020DistTar!$F$21:$F$24,E$38) -> 383055.0617 | F78: =INDEX(Prop2020DistTar!$F$21:$F$24,F$38) -> 2456109.333
B80: =B74 -> Proposed : Tariff V - AGN North - Residential | C80: =INDEX(Prop2020DistTar!$F$21:$F$24,C$38) -> 28266023 | D80: =INDEX(Prop2020DistTar!$F$21:$F$24,D$38) -> 646209.0052 | E80: =INDEX(Prop2020DistTar!$F$21:$F$24,E$38) -> 383055.0617 | F80: =INDEX(Prop2020DistTar!$F$21:$F$24,F$38) -> 2456109.333
B82: Distribution revenue | C82: Fixed | D82: PkBlk1 | E82: PkBlk2 | F82: PkBlk3
B84: =B78 -> Existing : Tariff V - AGN North - Residential | C84: =INDEX(Prop2020DistTar!$H$21:$H$24,C$39) -> 5373370.972 | D84: =INDEX(Prop2020DistTar!$H$21:$H$24,D$39) -> 6520055 | E84: =INDEX(Prop2020DistTar!$H$21:$H$24,E$39) -> 2309477.273 | F84: =INDEX(Prop2020DistTar!$H$21:$H$24,F$39) -> 8130213.113
B86: =B80 -> Proposed : Tariff V - AGN North - Residential | C86: =INDEX(Prop2020DistTar!$G$21:$G$24,C$38) -> 5458169.041 | D86: =INDEX(Prop2020DistTar!$G$21:$G$24,D$38) -> 6761672.547 | E86: =INDEX(Prop2020DistTar!$G$21:$G$24,E$38) -> 2346250.559 | F86: =INDEX(Prop2020DistTar!$G$21:$G$24,F$38) -> 8259650.075
B88: Revenue | C88: Total
B89: =B84 -> Existing : Tariff V - AGN North - Residential | C89: =SUM(C84:F84) -> 22333116.36
B90: =B86 -> Proposed : Tariff V - AGN North - Residential | C90: =SUM(C86:F86) -> 22825742.22
B92: Average price movement | C92: =IF(C90=0,"",C90/C89) -> 1.022058089
B94: =IF(C92="","",IF(C92<=$C$13,"REBALANCING CONTROL COMPLIANT","REBALANCING CONTROL BREACHED")) -> REBALANCING CONTROL COMPLIANT
B98: =Prop2020DistTar!B32 -> Tariff V - Murray Valley - Residential | C98: 1 | D98: 2 | E98: 3 | F98: 4
C99: 1 | D99: 2 | E99: 3 | F99: 4
B100: Distribution tariff | C100: Fixed | D100: Blk1 | E100: Blk2 | F100: Blk3
B102: ="Existing : "&Prop2020DistTar!C32 -> Existing : Tariff V - Murray Valley - Residential | C102: =INDEX(Prop2020DistTar!$E$34:$E$37,C$39) -> 0.2419 | D102: =INDEX(Prop2020DistTar!$E$34:$E$37,D$39) -> 8.7843 | E102: =INDEX(Prop2020DistTar!$E$34:$E$37,E$39) -> 5.4247 | F102: =INDEX(Prop2020DistTar!$E$34:$E$37,F$39) -> 3.3934
B104: ="Proposed : "&B98 -> Proposed : Tariff V - Murray Valley - Residential | C104: =INDEX(Prop2020DistTar!$D$34:$D$37,C$38) -> 0.2458 | D104: =INDEX(Prop2020DistTar!$D$34:$D$37,D$38) -> 9.1098 | E104: =INDEX(Prop2020DistTar!$D$34:$D$37,E$38) -> 5.5111 | F104: =INDEX(Prop2020DistTar!$D$34:$D$37,F$38) -> 3.4475
B106: Distribution volumes (actual) | C106: Fixed | D106: PkBlk1 | E106: PkBlk2 | F106: PkBlk3
B108: =B102 -> Existing : Tariff V - Murray Valley - Residential | C108: =INDEX(Prop2020DistTar!$F$34:$F$37,C$38) -> 2924336 | D108: =INDEX(Prop2020DistTar!$F$34:$F$37,D$38) -> 55926.25584 | E108: =INDEX(Prop2020DistTar!$F$34:$F$37,E$38) -> 29339.5961 | F108: =INDEX(Prop2020DistTar!$F$34:$F$37,F$38) -> 186758.2217
B110: =B104 -> Proposed : Tariff V - Murray Valley - Residential | C110: =INDEX(Prop2020DistTar!$F$34:$F$37,C$38) -> 2924336 | D110: =INDEX(Prop2020DistTar!$F$34:$F$37,D$38) -> 55926.25584 | E110: =INDEX(Prop2020DistTar!$F$34:$F$37,E$38) -> 29339.5961 | F110: =INDEX(Prop2020DistTar!$F$34:$F$37,F$38) -> 186758.2217
B112: Distribution revenue | C112: Fixed | D112: PkBlk1 | E112: PkBlk2 | F112: PkBlk3
B114: =B108 -> Existing : Tariff V - Murray Valley - Residential | C114: =INDEX(Prop2020DistTar!$H$34:$H$37,C$39) -> 707396.8784 | D114: =INDEX(Prop2020DistTar!$H$34:$H$37,D$39) -> 491273.0092 | E114: =INDEX(Prop2020DistTar!$H$34:$H$37,E$39) -> 159158.507 | F114: =INDEX(Prop2020DistTar!$H$34:$H$37,F$39) -> 633745.3494
B116: =B110 -> Proposed : Tariff V - Murray Valley - Residential | C116: =INDEX(Prop2020DistTar!$G$34:$G$37,C$38) -> 718801.7888 | D116: =INDEX(Prop2020DistTar!$G$34:$G$37,D$38) -> 509477.0055 | E116: =INDEX(Prop2020DistTar!$G$34:$G$37,E$38) -> 161693.4481 | F116: =INDEX(Prop2020DistTar!$G$34:$G$37,F$38) -> 643848.9692
B118: Revenue | C118: Total
B119: =B114 -> Existing : Tariff V - Murray Valley - Residential | C119: =SUM(C114:F114) -> 1991573.744
B120: =B116 -> Proposed : Tariff V - Murray Valley - Residential | C120: =SUM(C116:F116) -> 2033821.212
B122: Average price movement | C122: =IF(C120=0,"",C120/C119) -> 1.021213107
B124: =IF(C122="","",IF(C122<=$C$13,"REBALANCING CONTROL COMPLIANT","REBALANCING CONTROL BREACHED")) -> REBALANCING CONTROL COMPLIANT
B128: =Prop2020DistTar!B45 -> Tariff V - Bairnsdale - Residential | C128: 1 | D128: 2 | E128: 3 | F128: 4
C129: 1 | D129: 2 | E129: 3 | F129: 4
B130: Distribution tariff | C130: Fixed | D130: Blk1 | E130: Blk2 | F130: Blk3
B132: ="Existing : "&Prop2020DistTar!C45 -> Existing : Tariff V - Bairnsdale - Residential | C132: =INDEX(Prop2020DistTar!$E$47:$E$50,C$39) -> 0.3128 | D132: =INDEX(Prop2020DistTar!$E$47:$E$50,D$39) -> 18.7228 | E132: =INDEX(Prop2020DistTar!$E$47:$E$50,E$39) -> 11.1163 | F132: =INDEX(Prop2020DistTar!$E$47:$E$50,F$39) -> 6.1027
B134: ="Proposed : "&B128 -> Proposed : Tariff V - Bairnsdale - Residential | C134: =INDEX(Prop2020DistTar!$D$47:$D$50,C$38) -> 0.3178 | D134: =INDEX(Prop2020DistTar!$D$47:$D$50,D$38) -> 19.4166 | E134: =INDEX(Prop2020DistTar!$D$47:$D$50,E$38) -> 11.2934 | F134: =INDEX(Prop2020DistTar!$D$47:$D$50,F$38) -> 6.1999
B136: Distribution volumes (actual) | C136: Fixed | D136: PkBlk1 | E136: PkBlk2 | F136: PkBlk3
B138: =B132 -> Existing : Tariff V - Bairnsdale - Residential | C138: =INDEX(Prop2020DistTar!$F$47:$F$50,C$38) -> 1583316 | D138: =INDEX(Prop2020DistTar!$F$47:$F$50,D$38) -> 30897.5708 | E138: =INDEX(Prop2020DistTar!$F$47:$F$50,E$38) -> 15280.18421 | F138: =INDEX(Prop2020DistTar!$F$47:$F$50,F$38) -> 66716.11573
B140: =B134 -> Proposed : Tariff V - Bairnsdale - Residential | C140: =INDEX(Prop2020DistTar!$F$47:$F$50,C$38) -> 1583316 | D140: =INDEX(Prop2020DistTar!$F$47:$F$50,D$38) -> 30897.5708 | E140: =INDEX(Prop2020DistTar!$F$47:$F$50,E$38) -> 15280.18421 | F140: =INDEX(Prop2020DistTar!$F$47:$F$50,F$38) -> 66716.11573
B142: Distribution revenue | C142: Fixed | D142: PkBlk1 | E142: PkBlk2 | F142: PkBlk3
B144: =B138 -> Existing : Tariff V - Bairnsdale - Residential | C144: =INDEX(Prop2020DistTar!$H$47:$H$50,C$39) -> 495261.2448 | D144: =INDEX(Prop2020DistTar!$H$47:$H$50,D$39) -> 578489.0386 | E144: =INDEX(Prop2020DistTar!$H$47:$H$50,E$39) -> 169859.1118 | F144: =INDEX(Prop2020DistTar!$H$47:$H$50,F$39) -> 407148.4394
B146: =B140 -> Proposed : Tariff V - Bairnsdale - Residential | C146: =INDEX(Prop2020DistTar!$G$47:$G$50,C$38) -> 503177.8248 | D146: =INDEX(Prop2020DistTar!$G$47:$G$50,D$38) -> 599925.7732 | E146: =INDEX(Prop2020DistTar!$G$47:$G$50,E$38) -> 172565.2324 | F146: =INDEX(Prop2020DistTar!$G$47:$G$50,F$38) -> 413633.2459
B148: Revenue | C148: Total
B149: =B144 -> Existing : Tariff V - Bairnsdale - Residential | C149: =SUM(C144:F144) -> 1650757.835
B150: =B146 -> Proposed : Tariff V - Bairnsdale - Residential | C150: =SUM(C146:F146) -> 1689302.076
B152: Average price movement | C152: =IF(C150=0,"",C150/C149) -> 1.023349422
B154: =IF(C152="","",IF(C152<=$C$13,"REBALANCING CONTROL COMPLIANT","REBALANCING CONTROL BREACHED")) -> REBALANCING CONTROL COMPLIANT
B158: =Prop2020DistTar!B12 -> Tariff V - AGN Central - Non Residential | C158: 1 | D158: 2 | E158: 3 | F158: 4 | G158: 5
C159: 1 | D159: 2 | E159: 3 | F159: 4 | G159: 5
B160: Distribution tariff | C160: Fixed | D160: Blk1 | E160: Blk2 | F160: Blk3 | G160: Blk4
B162: ="Existing : "&Prop2020DistTar!C12 -> Existing : Tariff V - AGN Central - Non Residential | C162: =INDEX(Prop2020DistTar!$E$14:$E$18,C$39) -> 0.1901 | D162: =INDEX(Prop2020DistTar!$E$14:$E$18,D$39) -> 8.2633 | E162: =INDEX(Prop2020DistTar!$E$14:$E$18,E$39) -> 3.8769 | F162: =INDEX(Prop2020DistTar!$E$14:$E$18,F$39) -> 2.8973 | G162: =INDEX(Prop2020DistTar!$E$14:$E$18,G$39) -> 1.1749
B164: ="Proposed : "&B158 -> Proposed : Tariff V - AGN Central - Non Residential | C164: =INDEX(Prop2020DistTar!$D$14:$D$18,C$38) -> 0.1931 | D164: =INDEX(Prop2020DistTar!$D$14:$D$18,D$38) -> 8.3949 | E164: =INDEX(Prop2020DistTar!$D$14:$D$18,E$38) -> 3.9622 | F164: =INDEX(Prop2020DistTar!$D$14:$D$18,F$38) -> 2.9553 | G164: =INDEX(Prop2020DistTar!$D$14:$D$18,G$38) -> 1.1936
B166: Distribution volumes (actual) | C166: Fixed | D166: PkBlk1 | E166: PkBlk2 | F166: PkBlk3 | G166: PkBlk4
B168: =B162 -> Existing : Tariff V - AGN Central - Non Residential | C168: =INDEX(Prop2020DistTar!$F$14:$F$18,C$38) -> 7284773 | D168: =INDEX(Prop2020DistTar!$F$14:$F$18,D$38) -> 265830.6177 | E168: =INDEX(Prop2020DistTar!$F$14:$F$18,E$38) -> 1423735.413 | F168: =INDEX(Prop2020DistTar!$F$14:$F$18,F$38) -> 1139568.007 | G168: =INDEX(Prop2020DistTar!$F$14:$F$18,G$38) -> 4006118.313
B170: =B164 -> Proposed : Tariff V - AGN Central - Non Residential | C170: =INDEX(Prop2020DistTar!$F$14:$F$18,C$38) -> 7284773 | D170: =INDEX(Prop2020DistTar!$F$14:$F$18,D$38) -> 265830.6177 | E170: =INDEX(Prop2020DistTar!$F$14:$F$18,E$38) -> 1423735.413 | F170: =INDEX(Prop2020DistTar!$F$14:$F$18,F$38) -> 1139568.007 | G170: =INDEX(Prop2020DistTar!$F$14:$F$18,G$38) -> 4006118.313
B172: Distribution revenue | C172: Fixed | D172: PkBlk1 | E172: PkBlk2 | F172: PkBlk3 | G172: PkBlk4
B174: =B168 -> Existing : Tariff V - AGN Central - Non Residential | C174: =INDEX(Prop2020DistTar!$H$14:$H$18,C$39) -> 1384835.347 | D174: =INDEX(Prop2020DistTar!$H$14:$H$18,D$39) -> 2196638.143 | E174: =INDEX(Prop2020DistTar!$H$14:$H$18,E$39) -> 5519679.824 | F174: =INDEX(Prop2020DistTar!$H$14:$H$18,F$39) -> 3301670.386 | G174: =INDEX(Prop2020DistTar!$H$14:$H$18,G$39) -> 4706788.406
B176: =B170 -> Proposed : Tariff V - AGN Central - Non Residential | C176: =INDEX(Prop2020DistTar!$G$14:$G$18,C$38) -> 1406689.666 | D176: =INDEX(Prop2020DistTar!$G$14:$G$18,D$38) -> 2231621.452 | E176: =INDEX(Prop2020DistTar!$G$14:$G$18,E$38) -> 5641124.455 | F176: =INDEX(Prop2020DistTar!$G$14:$G$18,F$38) -> 3367765.33 | G176: =INDEX(Prop2020DistTar!$G$14:$G$18,G$38) -> 4781702.818
B178: Revenue | C178: Total
B179: =B174 -> Existing : Tariff V - AGN Central - Non Residential | C179: =SUM(C174:G174) -> 17109612.11
B180: =B176 -> Proposed : Tariff V - AGN Central - Non Residential | C180: =SUM(C176:G176) -> 17428903.72
B182: Average price movement | C182: =IF(C180=0,"",C180/C179) -> 1.018661534
B184: =IF(C182="","",IF(C182<=$C$13,"REBALANCING CONTROL COMPLIANT","REBALANCING CONTROL BREACHED")) -> REBALANCING CONTROL COMPLIANT
B188: =Prop2020DistTar!B25 -> Tariff V - AGN North - Non Residential | C188: 1 | D188: 2 | E188: 3 | F188: 4 | G188: 5
C189: 1 | D189: 2 | E189: 3 | F189: 4 | G189: 5
B190: Distribution tariff | C190: Fixed | D190: Blk1 | E190: Blk2 | F190: Blk3 | G190: Blk4
B192: ="Existing : "&Prop2020DistTar!C25 -> Existing : Tariff V - AGN North - Non Residential | C192: =INDEX(Prop2020DistTar!$E$27:$E$31,C$39) -> 0.1901 | D192: =INDEX(Prop2020DistTar!$E$27:$E$31,D$39) -> 7.4122 | E192: =INDEX(Prop2020DistTar!$E$27:$E$31,E$39) -> 3.5038 | F192: =INDEX(Prop2020DistTar!$E$27:$E$31,F$39) -> 2.6183 | G192: =INDEX(Prop2020DistTar!$E$27:$E$31,G$39) -> 1.0617
B194: ="Proposed : "&B188 -> Proposed : Tariff V - AGN North - Non Residential | C194: =INDEX(Prop2020DistTar!$D$27:$D$31,C$38) -> 0.1931 | D194: =INDEX(Prop2020DistTar!$D$27:$D$31,D$38) -> 7.5303 | E194: =INDEX(Prop2020DistTar!$D$27:$D$31,E$38) -> 3.5809 | F194: =INDEX(Prop2020DistTar!$D$27:$D$31,F$38) -> 2.6707 | G194: =INDEX(Prop2020DistTar!$D$27:$D$31,G$38) -> 1.0791
B196: Distribution volumes (actual) | C196: Fixed | D196: PkBlk1 | E196: PkBlk2 | F196: PkBlk3 | G196: PkBlk4
B198: =B192 -> Existing : Tariff V - AGN North - Non Residential | C198: =INDEX(Prop2020DistTar!$F$27:$F$31,C$38) -> 1189097 | D198: =INDEX(Prop2020DistTar!$F$27:$F$31,D$38) -> 37173.31227 | E198: =INDEX(Prop2020DistTar!$F$27:$F$31,E$38) -> 180073.9031 | F198: =INDEX(Prop2020DistTar!$F$27:$F$31,F$38) -> 123812.9693 | G198: =INDEX(Prop2020DistTar!$F$27:$F$31,G$38) -> 482010.1613
B200: =B194 -> Proposed : Tariff V - AGN North - Non Residential | C200: =INDEX(Prop2020DistTar!$F$27:$F$31,C$38) -> 1189097 | D200: =INDEX(Prop2020DistTar!$F$27:$F$31,D$38) -> 37173.31227 | E200: =INDEX(Prop2020DistTar!$F$27:$F$31,E$38) -> 180073.9031 | F200: =INDEX(Prop2020DistTar!$F$27:$F$31,F$38) -> 123812.9693 | G200: =INDEX(Prop2020DistTar!$F$27:$F$31,G$38) -> 482010.1613
B202: Distribution revenue | C202: Fixed | D202: PkBlk1 | E202: PkBlk2 | F202: PkBlk3 | G202: PkBlk4
B204: =B198 -> Existing : Tariff V - AGN North - Non Residential | C204: =INDEX(Prop2020DistTar!$H$27:$H$31,C$39) -> 226047.3397 | D204: =INDEX(Prop2020DistTar!$H$27:$H$31,D$39) -> 275536.0252 | E204: =INDEX(Prop2020DistTar!$H$27:$H$31,E$39) -> 630942.9418 | F204: =INDEX(Prop2020DistTar!$H$27:$H$31,F$39) -> 324179.4975 | G204: =INDEX(Prop2020DistTar!$H$27:$H$31,G$39) -> 511750.1883
B206: =B200 -> Proposed : Tariff V - AGN North - Non Residential | C206: =INDEX(Prop2020DistTar!$G$27:$G$31,C$38) -> 229614.6307 | D206: =INDEX(Prop2020DistTar!$G$27:$G$31,D$38) -> 279926.1934 | E206: =INDEX(Prop2020DistTar!$G$27:$G$31,E$38) -> 644826.6397 | F206: =INDEX(Prop2020DistTar!$G$27:$G$31,F$38) -> 330667.297 | G206: =INDEX(Prop2020DistTar!$G$27:$G$31,G$38) -> 520137.1651
B208: Revenue | C208: Total
B209: =B204 -> Existing : Tariff V - AGN North - Non Residential | C209: =SUM(C204:G204) -> 1968455.992
B210: =B206 -> Proposed : Tariff V - AGN North - Non Residential | C210: =SUM(C206:G206) -> 2005171.926
B212: Average price movement | C212: =IF(C210=0,"",C210/C209) -> 1.018652149
B214: =IF(C212="","",IF(C212<=$C$13,"REBALANCING CONTROL COMPLIANT","REBALANCING CONTROL BREACHED")) -> REBALANCING CONTROL COMPLIANT
B218: =Prop2020DistTar!B38 -> Tariff V - Murray Valley - Non Residential | C218: 1 | D218: 2 | E218: 3 | F218: 4 | G218: 5
C219: 1 | D219: 2 | E219: 3 | F219: 4 | G219: 5
B220: Distribution tariff | C220: Fixed | D220: Blk1 | E220: Blk2 | F220: Blk3 | G220: Blk4
B222: ="Existing : "&Prop2020DistTar!C38 -> Existing : Tariff V - Murray Valley - Non Residential | C222: =INDEX(Prop2020DistTar!$E$40:$E$44,C$39) -> 0.2419 | D222: =INDEX(Prop2020DistTar!$E$40:$E$44,D$39) -> 6.6274 | E222: =INDEX(Prop2020DistTar!$E$40:$E$44,E$39) -> 3.8911 | F222: =INDEX(Prop2020DistTar!$E$40:$E$44,F$39) -> 2.9096 | G222: =INDEX(Prop2020DistTar!$E$40:$E$44,G$39) -> 1.3224
B224: ="Proposed : "&B218 -> Proposed : Tariff V - Murray Valley - Non Residential | C224: =INDEX(Prop2020DistTar!$D$40:$D$44,C$38) -> 0.2458 | D224: =INDEX(Prop2020DistTar!$D$40:$D$44,D$38) -> 6.733 | E224: =INDEX(Prop2020DistTar!$D$40:$D$44,E$38) -> 3.9767 | F224: =INDEX(Prop2020DistTar!$D$40:$D$44,F$38) -> 2.9678 | G224: =INDEX(Prop2020DistTar!$D$40:$D$44,G$38) -> 1.3435
B226: Distribution volumes (actual) | C226: Fixed | D226: PkBlk1 | E226: PkBlk2 | F226: PkBlk3 | G226: PkBlk4
B228: =B222 -> Existing : Tariff V - Murray Valley - Non Residential | C228: =INDEX(Prop2020DistTar!$F$40:$F$44,C$38) -> 128179 | D228: =INDEX(Prop2020DistTar!$F$40:$F$44,D$38) -> 4312.191816 | E228: =INDEX(Prop2020DistTar!$F$40:$F$44,E$38) -> 20264.9674 | F228: =INDEX(Prop2020DistTar!$F$40:$F$44,F$38) -> 13200.20602 | G228: =INDEX(Prop2020DistTar!$F$40:$F$44,G$38) -> 28916.66075
B230: =B224 -> Proposed : Tariff V - Murray Valley - Non Residential | C230: =INDEX(Prop2020DistTar!$F$40:$F$44,C$38) -> 128179 | D230: =INDEX(Prop2020DistTar!$F$40:$F$44,D$38) -> 4312.191816 | E230: =INDEX(Prop2020DistTar!$F$40:$F$44,E$38) -> 20264.9674 | F230: =INDEX(Prop2020DistTar!$F$40:$F$44,F$38) -> 13200.20602 | G230: =INDEX(Prop2020DistTar!$F$40:$F$44,G$38) -> 28916.66075
B232: Distribution revenue | C232: Fixed | D232: PkBlk1 | E232: PkBlk2 | F232: PkBlk3 | G232: PkBlk4
B234: =B228 -> Existing : Tariff V - Murray Valley - Non Residential | C234: =INDEX(Prop2020DistTar!$H$40:$H$44,C$39) -> 31006.5001 | D234: =INDEX(Prop2020DistTar!$H$40:$H$44,D$39) -> 28578.62004 | E234: =INDEX(Prop2020DistTar!$H$40:$H$44,E$39) -> 78853.01466 | F234: =INDEX(Prop2020DistTar!$H$40:$H$44,F$39) -> 38407.31943 | G234: =INDEX(Prop2020DistTar!$H$40:$H$44,G$39) -> 38239.39218
B236: =B230 -> Proposed : Tariff V - Murray Valley - Non Residential | C236: =INDEX(Prop2020DistTar!$G$40:$G$44,C$38) -> 31506.3982 | D236: =INDEX(Prop2020DistTar!$G$40:$G$44,D$38) -> 29033.9875 | E236: =INDEX(Prop2020DistTar!$G$40:$G$44,E$38) -> 80587.69587 | F236: =INDEX(Prop2020DistTar!$G$40:$G$44,F$38) -> 39175.57142 | G236: =INDEX(Prop2020DistTar!$G$40:$G$44,G$38) -> 38849.53372
B238: Revenue | C238: Total
B239: =B234 -> Existing : Tariff V - Murray Valley - Non Residential | C239: =SUM(C234:G234) -> 215084.8464
B240: =B236 -> Proposed : Tariff V - Murray Valley - Non Residential | C240: =SUM(C236:G236) -> 219153.1867
B242: Average price movement | C242: =IF(C240=0,"",C240/C239) -> 1.018915048
B244: =IF(C242="","",IF(C242<=$C$13,"REBALANCING CONTROL COMPLIANT","REBALANCING CONTROL BREACHED")) -> REBALANCING CONTROL COMPLIANT
B248: =Prop2020DistTar!B51 -> Tariff V - Bairnsdale - Non Residential | C248: 1 | D248: 2 | E248: 3 | F248: 4 | G248: 5
C249: 1 | D249: 2 | E249: 3 | F249: 4 | G249: 5
B250: Distribution tariff | C250: Fixed | D250: Blk1 | E250: Blk2 | F250: Blk3 | G250: Blk4
B252: ="Existing : "&Prop2020DistTar!C51 -> Existing : Tariff V - Bairnsdale - Non Residential | C252: =INDEX(Prop2020DistTar!$E$53:$E$57,C$39) -> 0.3128 | D252: =INDEX(Prop2020DistTar!$E$53:$E$57,D$39) -> 13.5881 | E252: =INDEX(Prop2020DistTar!$E$53:$E$57,E$39) -> 6.5851 | F252: =INDEX(Prop2020DistTar!$E$53:$E$57,F$39) -> 4.9194 | G252: =INDEX(Prop2020DistTar!$E$53:$E$57,G$39) -> 1.9949
B254: ="Proposed : "&B248 -> Proposed : Tariff V - Bairnsdale - Non Residential | C254: =INDEX(Prop2020DistTar!$D$53:$D$57,C$38) -> 0.3178 | D254: =INDEX(Prop2020DistTar!$D$53:$D$57,D$38) -> 13.8045 | E254: =INDEX(Prop2020DistTar!$D$53:$D$57,E$38) -> 6.73 | F254: =INDEX(Prop2020DistTar!$D$53:$D$57,F$38) -> 5.0178 | G254: =INDEX(Prop2020DistTar!$D$53:$D$57,G$38) -> 2.0267
B256: Distribution volumes (actual) | C256: Fixed | D256: PkBlk1 | E256: PkBlk2 | F256: PkBlk3 | G256: PkBlk4
B258: =B252 -> Existing : Tariff V - Bairnsdale - Non Residential | C258: =INDEX(Prop2020DistTar!$F$53:$F$57,C$38) -> 42198 | D258: =INDEX(Prop2020DistTar!$F$53:$F$57,D$38) -> 1724.418849 | E258: =INDEX(Prop2020DistTar!$F$53:$F$57,E$38) -> 12856.56179 | F258: =INDEX(Prop2020DistTar!$F$53:$F$57,F$38) -> 10060.35819 | G258: =INDEX(Prop2020DistTar!$F$53:$F$57,G$38) -> 37494.20467
B260: =B254 -> Proposed : Tariff V - Bairnsdale - Non Residential | C260: =INDEX(Prop2020DistTar!$F$53:$F$57,C$38) -> 42198 | D260: =INDEX(Prop2020DistTar!$F$53:$F$57,D$38) -> 1724.418849 | E260: =INDEX(Prop2020DistTar!$F$53:$F$57,E$38) -> 12856.56179 | F260: =INDEX(Prop2020DistTar!$F$53:$F$57,F$38) -> 10060.35819 | G260: =INDEX(Prop2020DistTar!$F$53:$F$57,G$38) -> 37494.20467
B262: Distribution revenue | C262: Fixed | D262: PkBlk1 | E262: PkBlk2 | F262: PkBlk3 | G262: PkBlk4
B264: =B258 -> Existing : Tariff V - Bairnsdale - Non Residential | C264: =INDEX(Prop2020DistTar!$H$53:$H$57,C$39) -> 13199.5344 | D264: =INDEX(Prop2020DistTar!$H$53:$H$57,D$39) -> 23431.57577 | E264: =INDEX(Prop2020DistTar!$H$53:$H$57,E$39) -> 84661.74507 | F264: =INDEX(Prop2020DistTar!$H$53:$H$57,F$39) -> 49490.92606 | G264: =INDEX(Prop2020DistTar!$H$53:$H$57,G$39) -> 74797.1889
B266: =B260 -> Proposed : Tariff V - Bairnsdale - Non Residential | C266: =INDEX(Prop2020DistTar!$G$53:$G$57,C$38) -> 13410.5244 | D266: =INDEX(Prop2020DistTar!$G$53:$G$57,D$38) -> 23804.74 | E266: =INDEX(Prop2020DistTar!$G$53:$G$57,E$38) -> 86524.66088 | F266: =INDEX(Prop2020DistTar!$G$53:$G$57,F$38) -> 50480.8653 | G266: =INDEX(Prop2020DistTar!$G$53:$G$57,G$38) -> 75989.50461
B268: Revenue | C268: Total
B269: =B264 -> Existing : Tariff V - Bairnsdale - Non Residential | C269: =SUM(C264:G264) -> 245580.9702
B270: =B266 -> Proposed : Tariff V - Bairnsdale - Non Residential | C270: =SUM(C266:G266) -> 250210.2952
B272: Average price movement | C272: =IF(C270=0,"",C270/C269) -> 1.018850504
B274: =IF(C272="","",IF(C272<=$C$13,"REBALANCING CONTROL COMPLIANT","REBALANCING CONTROL BREACHED")) -> REBALANCING CONTROL COMPLIANT
B278: =Prop2020DistTar!B59 -> Tariff D - AGN Central
C279: 1 | D279: 2 | E279: 3
B280: Distribution tariff | C280: DemBlk1 | D280: DemBlk2 | E280: DemBlk2
B281: ="Existing: "&Prop2020DistTar!C59 -> Existing: Tariff D - AGN Central | C281: =INDEX(Prop2020DistTar!$E$60:$E$62,C279) -> 1429.5715 | D281: =INDEX(Prop2020DistTar!$E$60:$E$62,D279) -> 873.9485 | E281: =INDEX(Prop2020DistTar!$E$60:$E$62,E279) -> 159.601
B282: ="Proposed: "&B278 -> Proposed: Tariff D - AGN Central | C282: =INDEX(Prop2020DistTar!$D$60:$D$62,C279) -> 1461.0058 | D282: =INDEX(Prop2020DistTar!$D$60:$D$62,D279) -> 893.1654 | E282: =INDEX(Prop2020DistTar!$D$60:$D$62,E279) -> 163.1104
B284: Distribution volumes (actual) | C284: DemBlk1 | D284: DemBlk2 | E284: DemBlk2
B285: =B281 -> Existing: Tariff D - AGN Central | C285: =INDEX(Prop2020DistTar!$F$60:$F$62,C$38) -> 1452.292 | D285: =INDEX(Prop2020DistTar!$F$60:$F$62,D$38) -> 1249.9424 | E285: =INDEX(Prop2020DistTar!$F$60:$F$62,E$38) -> 1420.239
B286: =B282 -> Proposed: Tariff D - AGN Central | C286: =INDEX(Prop2020DistTar!$F$60:$F$62,C$38) -> 1452.292 | D286: =INDEX(Prop2020DistTar!$F$60:$F$62,D$38) -> 1249.9424 | E286: =INDEX(Prop2020DistTar!$F$60:$F$62,E$38) -> 1420.239
B288: Distribution revenue | C288: DemBlk1 | D288: DemBlk2 | E288: DemBlk2
B289: =B285 -> Existing: Tariff D - AGN Central | C289: =INDEX(Prop2020DistTar!$H$60:$H$62,C279) -> 2076155.253 | D289: =INDEX(Prop2020DistTar!$H$60:$H$62,D279) -> 1092385.286 | E289: =INDEX(Prop2020DistTar!$H$60:$H$62,E279) -> 226671.5646
B290: =B286 -> Proposed: Tariff D - AGN Central | C290: =INDEX(Prop2020DistTar!$G$60:$G$62,C279) -> 2121807.035 | D290: =INDEX(Prop2020DistTar!$G$60:$G$62,D279) -> 1116405.304 | E290: =INDEX(Prop2020DistTar!$G$60:$G$62,E279) -> 231655.7514
B292: Revenue | C292: Total
B293: =B289 -> Existing: Tariff D - AGN Central | C293: =SUM(C289:E289) -> 3395212.103
B294: =B290 -> Proposed: Tariff D - AGN Central | C294: =SUM(C290:E290) -> 3469868.09
B296: Average price movement | C296: =IF(C294=0,"",C294/C293) -> 1.021988608
B298: =IF(C296="","",IF(C296<=$C$13,"REBALANCING CONTROL COMPLIANT","REBALANCING CONTROL BREACHED")) -> REBALANCING CONTROL COMPLIANT
B302: =Prop2020DistTar!B64 -> Tariff D - AGN North
C303: 1 | D303: 2 | E303: 3
B304: Distribution tariff | C304: DemBlk1 | D304: DemBlk2 | E304: DemBlk2
B305: ="Existing: "&Prop2020DistTar!C64 -> Existing: Tariff D - AGN North | C305: =INDEX(Prop2020DistTar!$E$65:$E$67,C303) -> 1429.5715 | D305: =INDEX(Prop2020DistTar!$E$65:$E$67,D303) -> 873.9485 | E305: =INDEX(Prop2020DistTar!$E$65:$E$67,E303) -> 159.601
B306: ="Proposed: "&B302 -> Proposed: Tariff D - AGN North | C306: =INDEX(Prop2020DistTar!$D$65:$D$67,C303) -> 1461.0058 | D306: =INDEX(Prop2020DistTar!$D$65:$D$67,D303) -> 893.1654 | E306: =INDEX(Prop2020DistTar!$D$65:$D$67,E303) -> 163.1104
B308: Distribution volumes (actual) | C308: DemBlk1 | D308: DemBlk2 | E308: DemBlk2
B309: =B305 -> Existing: Tariff D - AGN North | C309: =INDEX(Prop2020DistTar!$F$65:$F$67,C$38) -> 434.1424 | D309: =INDEX(Prop2020DistTar!$F$65:$F$67,D$38) -> 627.2101 | E309: =INDEX(Prop2020DistTar!$F$65:$F$67,E$38) -> 440.2185
B310: =B306 -> Proposed: Tariff D - AGN North | C310: =INDEX(Prop2020DistTar!$F$65:$F$67,C$38) -> 434.1424 | D310: =INDEX(Prop2020DistTar!$F$65:$F$67,D$38) -> 627.2101 | E310: =INDEX(Prop2020DistTar!$F$65:$F$67,E$38) -> 440.2185
B312: Distribution revenue | C312: DemBlk1 | D312: DemBlk2 | E312: DemBlk2
B313: =B309 -> Existing: Tariff D - AGN North | C313: =INDEX(Prop2020DistTar!$H$65:$H$67,C303) -> 620637.602 | D313: =INDEX(Prop2020DistTar!$H$65:$H$67,D303) -> 548149.3261 | E313: =INDEX(Prop2020DistTar!$H$65:$H$67,E303) -> 70259.31282
B314: =B310 -> Proposed: Tariff D - AGN North | C314: =INDEX(Prop2020DistTar!$G$65:$G$67,C303) -> 634284.5644 | D314: =INDEX(Prop2020DistTar!$G$65:$G$67,D303) -> 560202.3599 | E314: =INDEX(Prop2020DistTar!$G$65:$G$67,E303) -> 71804.21562
B316: Revenue | C316: Total
B317: =B313 -> Existing: Tariff D - AGN North | C317: =SUM(C313:E313) -> 1239046.241
B318: =B314 -> Proposed: Tariff D - AGN North | C318: =SUM(C314:E314) -> 1266291.14
B320: Average price movement | C320: =IF(C318=0,"",C318/C317) -> 1.021988606
B322: =IF(C320="","",IF(C320<=$C$13,"REBALANCING CONTROL COMPLIANT","REBALANCING CONTROL BREACHED")) -> REBALANCING CONTROL COMPLIANT
B326: =Prop2020DistTar!B69 -> Tariff D - Murray Valley
C327: 1 | D327: 2 | E327: 3
B328: Distribution tariff | C328: DemBlk1 | D328: DemBlk2 | E328: DemBlk2
B329: ="Existing: "&Prop2020DistTar!C69 -> Existing: Tariff D - Murray Valley | C329: =INDEX(Prop2020DistTar!$E$70:$E$72,C327) -> 1666.3373 | D329: =INDEX(Prop2020DistTar!$E$70:$E$72,D327) -> 1028.2353 | E329: =INDEX(Prop2020DistTar!$E$70:$E$72,E327) -> 175.1266
B330: ="Proposed: "&B326 -> Proposed: Tariff D - Murray Valley | C330: =INDEX(Prop2020DistTar!$D$70:$D$72,C327) -> 1702.9777 | D330: =INDEX(Prop2020DistTar!$D$70:$D$72,D327) -> 1050.8447 | E330: =INDEX(Prop2020DistTar!$D$70:$D$72,E327) -> 178.9774
B332: Distribution volumes (actual) | C332: DemBlk1 | D332: DemBlk2 | E332: DemBlk2
B333: =B329 -> Existing: Tariff D - Murray Valley | C333: =INDEX(Prop2020DistTar!$F$70:$F$72,C$38) -> 68.2359 | D333: =INDEX(Prop2020DistTar!$F$70:$F$72,D$38) -> 163.2035 | E333: =INDEX(Prop2020DistTar!$F$70:$F$72,E$38) -> 102.5181
B334: =B330 -> Proposed: Tariff D - Murray Valley | C334: =INDEX(Prop2020DistTar!$F$70:$F$72,C$38) -> 68.2359 | D334: =INDEX(Prop2020DistTar!$F$70:$F$72,D$38) -> 163.2035 | E334: =INDEX(Prop2020DistTar!$F$70:$F$72,E$38) -> 102.5181
B336: Distribution revenue | C336: DemBlk1 | D336: DemBlk2 | E336: DemBlk2
B337: =B333 -> Existing: Tariff D - Murray Valley | C337: =INDEX(Prop2020DistTar!$H$70:$H$72,C327) -> 113704.0254 | D337: =INDEX(Prop2020DistTar!$H$70:$H$72,D327) -> 167811.5998 | E337: =INDEX(Prop2020DistTar!$H$70:$H$72,E327) -> 17953.64629
B338: =B334 -> Proposed: Tariff D - Murray Valley | C338: =INDEX(Prop2020DistTar!$G$70:$G$72,C327) -> 116204.216 | D338: =INDEX(Prop2020DistTar!$G$70:$G$72,D327) -> 171501.533 | E338: =INDEX(Prop2020DistTar!$G$70:$G$72,E327) -> 18348.42299
B340: Revenue | C340: Total
B341: =B337 -> Existing: Tariff D - Murray Valley | C341: =SUM(C337:E337) -> 299469.2714
B342: =B338 -> Proposed: Tariff D - Murray Valley | C342: =SUM(C338:E338) -> 306054.172
... 66 more rows

Sheet ARS
A1: ="Tariff Approval - "&'Model update'!B3 -> Tariff Approval - Aust. Gas Networks (Vic & Albury)
A3: Ancillary Reference Services (Exc GST)
B5: ='Model update'!$B$8 -> 2019 | C5: ='Model update'!$B$5 -> 2020
A6: Meter and Gas Installation Test | B6: 218 | C6: =ROUND(B6*(1+'Model update'!$B$30),0) -> 221
A7: Disconnection | B7: 72 | C7: =ROUND(B7*(1+'Model update'!$B$30),0) -> 73
A8: Reconnection | B8: 84 | C8: =ROUND(B8*(1+'Model update'!$B$30),0) -> 85
A9: Meter Removal | B9: 102 | C9: =ROUND(B9*(1+'Model update'!$B$30),0) -> 104
A10: Meter Reinstallation | B10: 102 | C10: =ROUND(B10*(1+'Model update'!$B$30),0) -> 104
A11: Special Meter Read - Metropolitan | B11: 9.2 | C11: =ROUND(B11*(1+'Model update'!$B$30),1) -> 9.3
A12: Special Meter Read - Non Metropolitan | B12: 12.6 | C12: =ROUND(B12*(1+'Model update'!$B$30),1) -> 12.8
A14: ="Note: "&'Model update'!$B$5&" formula is as per AA2018-22, Section 4.4.2, p9 : ART = ARTt-1 * (1+CPI)" -> Note: 2020 formula is as per AA2018-22, Section 4.4.2, p9 : ART = ARTt-1 * (1+CPI)
